fUSD/lending_fUSD_20250119
["ID","MTS","AMOUNT","RATE_DAILY","PERIOD"]
[349558746,1737295832461,-500.0,0.00019178,2]
[349558748,1737295832471,-500.0,0.00019178,2]
[349558750,1737295832481,-500.0,0.00019178,2]
[349558752,1737295832491,-500.0,0.00019178,2]
[349558754,1737295832503,-511.56504729,0.00019178,2]
[349558756,1737295832512,-500.0,0.00019178,2]
[349558758,1737295832522,-500.0,0.00019178,2]
[349558760,1737295832532,-500.0,0.00019178,2]
[349558763,1737295832542,-500.0,0.00019178,2]
[349558765,1737295832552,-500.0,0.00019178,2]
[349558767,1737295832562,-500.0,0.00019178,2]
[349558769,1737295832572,-500.0,0.00019178,2]
[349558771,1737295832582,-500.0,0.00019178,2]
[349558773,1737295832591,-500.0,0.00019178,2]
[349558775,1737295832601,-500.0,0.00019178,2]
[349558777,1737295832614,-500.0,0.00019178,2]
[349558779,1737295832625,-500.0,0.00019178,2]
[349558781,1737295832635,-500.0,0.00019178,2]
[349558783,1737295832646,-537.56,0.00019178,2]
[349558785,1737295832655,-500.0,0.00019178,2]
[349558787,1737295832665,-500.0,0.00019178,2]
[349558789,1737295832675,-500.0,0.00019178,2]
[349558791,1737295832685,-500.0,0.00019178,2]
[349558793,1737295832695,-500.0,0.00019178,2]
[349558795,1737295832705,-500.0,0.00019178,2]
[349558797,1737295832714,-500.0,0.00019178,2]
[349558799,1737295832723,-500.0,0.00019178,2]
[349558802,1737295832734,-500.0,0.00019178,2]
[349558804,1737295832745,-500.0,0.00019178,2]
[349558806,1737295832758,-500.0,0.00019178,2]
[349558808,1737295832769,-500.0,0.00019178,2]
[349558810,1737295832779,-500.0,0.00019178,2]
[349558812,1737295832789,-500.0,0.00019178,2]
[349558814,1737295832799,-500.0,0.00019178,2]
[349558816,1737295832814,-500.0,0.00019178,2]
[349558818,1737295832824,-632.35408358,0.00019178,2]
[349558820,1737295832834,-500.0,0.00019178,2]
[349558822,1737295832844,-500.0,0.00019178,2]
[349558824,1737295832855,-500.0,0.00019178,2]
[349558826,1737295832865,-500.0,0.00019178,2]
[349558828,1737295832875,-500.0,0.00019178,2]
[349558830,1737295832885,-500.0,0.00019178,2]
[349558832,1737295832896,-500.0,0.00019178,2]
[349558834,1737295832906,-500.0,0.00019178,2]
[349558836,1737295832916,-500.0,0.00019178,2]
[349558838,1737295832926,-500.0,0.00019178,2]
[349558840,1737295832936,-500.0,0.00019178,2]
[349558842,1737295832945,-500.0,0.00019178,2]
[349558844,1737295832955,-500.0,0.00019178,2]
[349558846,1737295832965,-500.0,0.00019178,2]
[349558848,1737295832975,-500.0,0.00019178,2]
[349558850,1737295832985,-500.0,0.00019178,2]
[349558852,1737295832995,-500.0,0.00019178,2]
[349558854,1737295833009,-500.0,0.00019178,2]
[349558856,1737295833019,-500.0,0.00019178,2]
[349558858,1737295833030,-302.82335107,0.00019178,2]
[349558860,1737295833040,-500.0,0.00019178,2]
[349558862,1737295833051,-500.0,0.00019178,2]
[349558864,1737295833061,-500.0,0.00019178,2]
[349558866,1737295833072,-9.56536102,0.00019178,2]
[349558900,1737295833400,-970.13463898,0.00019178,2]
[349558902,1737295833410,-500.0,0.00019178,2]
[349558904,1737295833420,-500.0,0.00019178,2]
[349558906,1737295833430,-500.0,0.00019178,2]
[349558908,1737295833442,-500.0,0.00019178,2]
[349558910,1737295833452,-500.0,0.00019178,2]
[349558912,1737295833462,-500.0,0.00019178,2]
[349558914,1737295833473,-500.0,0.00019178,2]
[349558916,1737295833483,-500.0,0.00019178,2]
[349558918,1737295833493,-500.0,0.00019178,2]
[349558920,1737295833504,-500.0,0.00019178,2]
[349558922,1737295833514,-200.0,0.00019178,2]
[349558924,1737295833525,-500.0,0.00019178,2]
[349558926,1737295833536,-376.01693497,0.00019178,2]
[349558929,1737295833547,-500.0,0.00019178,2]
[349558931,1737295833559,-500.0,0.00019178,2]
[349558933,1737295833569,-500.0,0.00019178,2]
[349558935,1737295833581,-500.0,0.00019178,2]
[349558937,1737295833592,-414.2128298,0.00019178,2]
[349558939,1737295833603,-500.0,0.00019178,2]
[349558941,1737295833614,-500.0,0.00019178,2]
[349558943,1737295833626,-500.0,0.00019178,2]
[349558945,1737295833636,-500.0,0.00019178,2]
[349558948,1737295833646,-648.95,0.00019178,2]
[349558950,1737295833657,-500.0,0.00019178,2]
[349558951,1737295833667,-500.0,0.00019178,2]
[349558953,1737295833676,-500.0,0.00019178,2]
[349558955,1737295833687,-500.0,0.00019178,2]
[349558957,1737295833697,-500.0,0.00019178,2]
[349558959,1737295833707,-500.0,0.00019178,2]
[349558962,1737295833717,-500.0,0.00019178,2]
[349558964,1737295833727,-500.0,0.00019178,2]
[349558966,1737295833737,-500.0,0.00019178,2]
[349558968,1737295833747,-500.0,0.00019178,2]
[349558970,1737295833760,-824.661231,0.00019178,2]
[349558972,1737295833770,-500.0,0.00019178,2]
[349558974,1737295833780,-500.0,0.00019178,2]
[349558976,1737295833791,-500.0,0.00019178,2]
[349558978,1737295833802,-500.0,0.00019178,2]
[349558980,1737295833812,-500.0,0.00019178,2]
[349558983,1737295833828,-500.0,0.00019178,2]
[349558984,1737295833838,-500.0,0.00019178,2]
[349558986,1737295833849,-500.0,0.00019178,2]
[349558987,1737295833859,-500.0,0.00019178,2]
[349558989,1737295833870,-500.0,0.00019178,2]
[349558992,1737295833884,-500.0,0.00019178,2]
[349558994,1737295833895,-500.0,0.00019178,2]
[349558996,1737295833907,-500.0,0.00019178,2]
[349558998,1737295833917,-500.0,0.00019178,2]
[349559000,1737295833928,-500.0,0.00019178,2]
[349559002,1737295833939,-500.0,0.00019178,2]
[349559004,1737295833949,-500.0,0.00019178,2]
[349559006,1737295833960,-500.0,0.00019178,2]
[349559008,1737295833971,-500.0,0.00019178,2]
[349559010,1737295833983,-500.0,0.00019178,2]
[349559012,1737295833993,-500.0,0.00019178,2]
[349559014,1737295834006,-500.0,0.00019178,2]
[349559016,1737295834016,-500.0,0.00019178,2]
[349559018,1737295834028,-528.00438146,0.00019178,2]
[349559020,1737295834039,-500.0,0.00019178,2]
[349559022,1737295834050,-521.72017499,0.00019178,2]
[349559024,1737295834060,-463.31505,0.00019178,2]
[349559026,1737295834070,-500.0,0.00019178,2]
[349559028,1737295834081,-500.0,0.00019178,2]
[349559030,1737295834091,-500.0,0.00019178,2]
[349559032,1737295834101,-500.0,0.00019178,2]
[349559034,1737295834112,-500.0,0.00019178,2]
[349559037,1737295834123,-500.0,0.00019178,2]
[349559039,1737295834134,-500.0,0.00019178,2]
[349559041,1737295834145,-500.0,0.00019178,2]
[349559043,1737295834155,-500.0,0.00019178,2]
[349559045,1737295834165,-500.0,0.00019178,2]
[349559047,1737295834175,-500.0,0.00019178,2]
[349559049,1737295834186,-164.113929,0.00019178,2]
[349559051,1737295834196,-500.0,0.00019178,2]
[349559053,1737295834207,-500.0,0.00019178,2]
[349559055,1737295834217,-500.0,0.00019178,2]
[349559057,1737295834228,-500.0,0.00019178,2]
[349559059,1737295834238,-500.0,0.00019178,2]
[349559061,1737295834249,-500.0,0.00019178,2]
[349559063,1737295834263,-500.0,0.00019178,2]
[349559065,1737295834274,-593.71,0.00019178,2]
[349559067,1737295834285,-500.0,0.00019178,2]
[349559069,1737295834295,-500.0,0.00019178,2]
[349559071,1737295834306,-500.0,0.00019178,2]
[349559073,1737295834318,-500.0,0.00019178,2]
[349559074,1737295834329,-500.0,0.00019178,2]
[349559075,1737295834339,-500.0,0.00019178,2]
[349559076,1737295834349,-500.0,0.00019178,2]
[349559077,1737295834360,-500.0,0.00019178,2]
[349559078,1737295834372,-500.0,0.00019178,2]
[349559079,1737295834383,-500.0,0.00019178,2]
[349559080,1737295834394,-500.0,0.00019178,2]
[349559081,1737295834405,-500.0,0.00019178,2]
[349559082,1737295834415,-500.0,0.00019178,2]
[349559083,1737295834425,-383.99387813,0.00019178,2]
[349559084,1737295834436,-500.0,0.00019178,2]
[349559085,1737295834446,-500.0,0.00019178,2]
[349559086,1737295834457,-500.0,0.00019178,2]
[349559087,1737295834467,-500.0,0.00019178,2]
[349559088,1737295834478,-500.0,0.00019178,2]
[349559089,1737295834489,-500.0,0.00019178,2]
[349559090,1737295834499,-562.68,0.00019178,2]
[349559091,1737295834514,-500.0,0.00019178,2]
[349559092,1737295834525,-500.0,0.00019178,2]
[349559093,1737295834535,-500.0,0.00019178,2]
[349559094,1737295834546,-500.0,0.00019178,2]
[349559095,1737295834557,-500.0,0.00019178,2]
[349559096,1737295834568,-500.0,0.00019178,2]
[349559097,1737295834579,-500.0,0.00019178,2]
[349559098,1737295834590,-500.0,0.00019178,2]
[349559099,1737295834600,-500.0,0.00019178,2]
[349559100,1737295834611,-500.0,0.00019178,2]
[349559101,1737295834621,-500.0,0.00019178,2]
[349559102,1737295834632,-500.0,0.00019178,2]
[349559103,1737295834644,-500.0,0.00019178,2]
[349559104,1737295834655,-500.0,0.00019178,2]
[349559105,1737295834665,-500.0,0.00019178,2]
[349559106,1737295834676,-500.0,0.00019178,2]
[349559107,1737295834686,-500.0,0.00019178,2]
[349559108,1737295834697,-500.0,0.00019178,2]
[349559109,1737295834707,-500.0,0.00019178,2]
[349559110,1737295834718,-500.0,0.00019178,2]
[349559111,1737295834729,-500.0,0.00019178,2]
[349559112,1737295834739,-500.0,0.00019178,2]
[349559113,1737295834750,-598.03,0.00019178,2]
[349559114,1737295834764,-500.0,0.00019178,2]
[349559115,1737295834774,-500.0,0.00019178,2]
[349559116,1737295834785,-500.0,0.00019178,2]
[349559117,1737295834796,-500.0,0.00019178,2]
[349559118,1737295834806,-500.0,0.00019178,2]
[349559119,1737295834819,-500.0,0.00019178,2]
[349559120,1737295834830,-333.59849219,0.00019178,2]
[349559121,1737295834840,-500.0,0.00019178,2]
[349559122,1737295834852,-500.0,0.00019178,2]
[349559123,1737295834863,-627.08728379,0.00019178,2]
[349559124,1737295834875,-500.0,0.00019178,2]
[349559125,1737295835165,-500.0,0.00019178,2]
[349559126,1737295835176,-500.0,0.00019178,2]
[349559127,1737295835187,-500.0,0.00019178,2]
[349559128,1737295835197,-500.0,0.00019178,2]
[349559129,1737295835207,-500.0,0.00019178,2]
[349559130,1737295835218,-500.0,0.00019178,2]
[349559131,1737295835228,-601.44,0.00019178,2]
[349559132,1737295835238,-500.0,0.00019178,2]
[349559133,1737295835248,-500.0,0.00019178,2]
[349559134,1737295835260,-500.0,0.00019178,2]
[349559135,1737295835270,-500.0,0.00019178,2]
[349559136,1737295835281,-500.0,0.00019178,2]
[349559137,1737295835291,-500.0,0.00019178,2]
[349559138,1737295835301,-500.0,0.00019178,2]
[349559139,1737295835311,-500.0,0.00019178,2]
[349559140,1737295835321,-525.22,0.00019178,2]
[349559141,1737295835331,-500.0,0.00019178,2]
[349559142,1737295835341,-503.66455936,0.00019178,2]
[349559143,1737295835350,-500.0,0.00019178,2]
[349559144,1737295835360,-500.0,0.00019178,2]
[349559145,1737295835369,-500.0,0.00019178,2]
[349559146,1737295835379,-500.0,0.00019178,2]
[349559147,1737295835388,-500.0,0.00019178,2]
[349559148,1737295835398,-500.0,0.00019178,2]
[349559149,1737295835407,-500.0,0.00019178,2]
[349559150,1737295835417,-500.0,0.00019178,2]
[349559151,1737295835427,-500.0,0.00019178,2]
[349559152,1737295835437,-500.0,0.00019178,2]
[349559153,1737295835446,-500.0,0.00019178,2]
[349559154,1737295835455,-500.0,0.00019178,2]
[349559155,1737295835463,-500.0,0.00019178,2]
[349559156,1737295835473,-500.0,0.00019178,2]
[349559157,1737295835482,-500.0,0.00019178,2]
[349559158,1737295835491,-197.94115361,0.00019178,2]
[349559159,1737295835500,-500.0,0.00019178,2]
[349559160,1737295835511,-500.0,0.00019178,2]
[349559161,1737295835521,-500.0,0.00019178,2]
[349559162,1737295835530,-500.0,0.00019178,2]
[349559163,1737295835548,-500.0,0.00019178,2]
[349559164,1737295835569,-500.0,0.00019178,2]
[349559165,1737295835580,-500.0,0.00019178,2]
[349559166,1737295835590,-500.0,0.00019178,2]
[349559167,1737295835600,-500.0,0.00019178,2]
[349559168,1737295835610,-500.0,0.00019178,2]
[349559169,1737295835620,-624.0,0.00019178,2]
[349559170,1737295835629,-803.63,0.00019178,2]
[349559171,1737295835639,-734.71,0.00019178,2]
[349559172,1737295835649,-500.0,0.00019178,2]
[349559173,1737295835658,-2742.11,0.00019178,2]
[349559174,1737295835667,-500.0,0.00019178,2]
[349559175,1737295835677,-3040.92,0.00019178,2]
[349559176,1737295835686,-636.09,0.00019178,2]
[349559177,1737295835696,-1011.19,0.00019178,2]
[349559178,1737295835706,-1127.7,0.00019178,2]
[349559179,1737295835715,-500.0,0.00019178,2]
[349559180,1737295835724,-500.0,0.00019178,2]
[349559181,1737295835734,-500.0,0.00019178,2]
[349559182,1737295835744,-500.0,0.00019178,2]
[349559183,1737295835755,-684.88,0.00019178,2]
[349559184,1737295835764,-500.0,0.00019178,2]
[349559185,1737295835774,-908.16,0.00019178,2]
[349559186,1737295835783,-1247.32,0.00019178,2]
[349559187,1737295835793,-500.0,0.00019178,2]
[349559188,1737295835803,-500.0,0.00019178,2]
[349559189,1737295835818,-986.9,0.00019178,2]
[349559190,1737295835828,-500.0,0.00019178,2]
[349559191,1737295835839,-2869.51,0.00019178,2]
[349559192,1737295835849,-500.0,0.00019178,2]
[349559193,1737295835860,-500.0,0.00019178,2]
[349559194,1737295835870,-500.0,0.00019178,2]
[349559195,1737295835881,-511.89,0.00019178,2]
[349559196,1737295835892,-547.55,0.00019178,2]
[349559197,1737295835902,-500.0,0.00019178,2]
[349559198,1737295835912,-500.0,0.00019178,2]
[349559199,1737295835922,-500.0,0.00019178,2]
[349559200,1737295835933,-500.0,0.00019178,2]
[349559201,1737295835943,-500.0,0.00019178,2]
[349559202,1737295835953,-980.39,0.00019178,2]
[349559203,1737295835962,-500.0,0.00019178,2]
[349559204,1737295835972,-500.0,0.00019178,2]
[349559205,1737295835982,-1901.43,0.00019178,2]
[349559206,1737295835991,-574.45,0.00019178,2]
[349559207,1737295836001,-500.0,0.00019178,2]
[349559208,1737295836012,-500.0,0.00019178,2]
[349559209,1737295836022,-1895.82,0.00019178,2]
[349559210,1737295836031,-1772.87,0.00019178,2]
[349559211,1737295836041,-185.99462794,0.00019178,2]
[349559212,1737295836051,-500.0,0.00019178,2]
[349559213,1737295836061,-907.58,0.00019178,2]
[349559214,1737295836071,-500.0,0.00019178,2]
[349559215,1737295836081,-962.1,0.00019178,2]
[349559216,1737295836091,-611.5,0.00019178,2]
[349559217,1737295836100,-500.0,0.00019178,2]
[349559218,1737295836110,-500.0,0.00019178,2]
[349559219,1737295836119,-615.07,0.00019178,2]
[349559220,1737295836129,-1081.13,0.00019178,2]
[349559221,1737295836139,-1824.47,0.00019178,2]
[349559222,1737295836149,-1128.83,0.00019178,2]
[349559223,1737295836158,-779.59,0.00019178,2]
[349559224,1737295836169,-500.0,0.00019178,2]
[349559225,1737295836178,-1057.43,0.00019178,2]
[349559226,1737295836188,-500.0,0.00019178,2]
[349559227,1737295836197,-500.0,0.00019178,2]
[349559228,1737295836207,-808.36,0.00019178,2]
[349559229,1737295836217,-2511.83,0.00019178,2]
[349559230,1737295836226,-500.0,0.00019178,2]
[349559231,1737295836236,-950.06,0.00019178,2]
[349559232,1737295836246,-500.0,0.00019178,2]
[349559233,1737295836259,-1505.94,0.00019178,2]
[349559234,1737295836269,-500.0,0.00019178,2]
[349559235,1737295836278,-1601.1,0.00019178,2]
[349559236,1737295836288,-1392.17,0.00019178,2]
[349559237,1737295836297,-1936.96,0.00019178,2]
[349559238,1737295836306,-500.0,0.00019178,2]
[349559239,1737295836316,-500.0,0.00019178,2]
[349559240,1737295836326,-913.05,0.00019178,2]
[349559241,1737295836335,-2265.47,0.00019178,2]
[349559242,1737295836344,-500.0,0.00019178,2]
[349559243,1737295836354,-500.0,0.00019178,2]
[349559244,1737295836363,-500.0,0.00019178,2]
[349559245,1737295836372,-500.0,0.00019178,2]
[349559246,1737295836381,-500.0,0.00019178,2]
[349559247,1737295836391,-500.0,0.00019178,2]
[349559248,1737295836400,-1982.14,0.00019178,2]
[349559249,1737295836409,-500.0,0.00019178,2]
[349559250,1737295836418,-553.34,0.00019178,2]
[349559251,1737295836428,-3330.96,0.00019178,2]
[349559252,1737295836438,-500.0,0.00019178,2]
[349559253,1737295836448,-500.0,0.00019178,2]
[349559254,1737295836458,-779.34,0.00019178,2]
[349559255,1737295836467,-1043.03,0.00019178,2]
[349559256,1737295836477,-500.0,0.00019178,2]
[349559257,1737295836487,-1370.63,0.00019178,2]
[349559258,1737295836497,-500.0,0.00019178,2]
[349559259,1737295836511,-564.65,0.00019178,2]
[349559260,1737295836521,-3709.46,0.00019178,2]
[349559261,1737295836530,-502.23,0.00019178,2]
[349559262,1737295836540,-500.0,0.00019178,2]
[349559263,1737295836550,-1640.85,0.00019178,2]
[349559264,1737295836559,-544.68,0.00019178,2]
[349559265,1737295836569,-1350.5,0.00019178,2]
[349559266,1737295836579,-797.87,0.00019178,2]
[349559267,1737295836589,-500.0,0.00019178,2]
[349559268,1737295836599,-3651.14,0.00019178,2]
[349559269,1737295836608,-4438.25,0.00019178,2]
[349559270,1737295836619,-500.0,0.00019178,2]
[349559271,1737295836628,-500.0,0.00019178,2]
[349559272,1737295836638,-500.0,0.00019178,2]
[349559273,1737295836647,-500.0,0.00019178,2]
[349559274,1737295836657,-759.5,0.00019178,2]
[349559275,1737295836667,-892.16,0.00019178,2]
[349559276,1737295836676,-2450.03,0.00019178,2]
[349559277,1737295836686,-500.0,0.00019178,2]
[349559278,1737295836696,-500.0,0.00019178,2]
[349559279,1737295836706,-501.18,0.00019178,2]
[349559280,1737295836715,-500.0,0.00019178,2]
[349559281,1737295836725,-500.0,0.00019178,2]
[349559282,1737295836736,-536.19833691,0.00019178,2]
[349559283,1737295836745,-500.0,0.00019178,2]
[349559284,1737295836759,-723.03,0.00019178,2]
[349559285,1737295836769,-530.67,0.00019178,2]
[349559286,1737295836779,-2025.11,0.00019178,2]
[349559287,1737295836789,-500.0,0.00019178,2]
[349559288,1737295836799,-500.0,0.00019178,2]
[349559289,1737295836809,-500.0,0.00019178,2]
[349559290,1737295836824,-864.92,0.00019178,2]
[349559291,1737295836834,-500.0,0.00019178,2]
[349559292,1737295836844,-1553.11,0.00019178,2]
[349559293,1737295836854,-6815.31,0.00019178,2]
[349559294,1737295836865,-500.0,0.00019178,2]
[349559295,1737295836876,-586.46,0.00019178,2]
[349559296,1737295836885,-939.47,0.00019178,2]
[349559297,1737295836896,-500.0,0.00019178,2]
[349559298,1737295836906,-1310.9,0.00019178,2]
[349559299,1737295836916,-500.0,0.00019178,2]
[349559300,1737295836925,-500.0,0.00019178,2]
[349559301,1737295836935,-500.0,0.00019178,2]
[349559302,1737295836945,-1177.09,0.00019178,2]
[349559303,1737295836955,-500.0,0.00019178,2]
[349559304,1737295836964,-1155.77,0.00019178,2]
[349559305,1737295836974,-500.0,0.00019178,2]
[349559306,1737295836986,-629.75000614,0.00019178,2]
[349559307,1737295836997,-2403.83,0.00019178,2]
[349559308,1737295837011,-5986.62,0.00019178,2]
[349559309,1737295837022,-866.62,0.00019178,2]
[349559310,1737295837033,-500.0,0.00019178,2]
[349559311,1737295837043,-507.66154877,0.00019178,2]
[349559312,1737295837054,-2276.55,0.00019178,2]
[349559313,1737295837064,-500.0,0.00019178,2]
[349559314,1737295837073,-500.0,0.00019178,2]
[349559315,1737295837083,-1028.52,0.00019178,2]
[349559316,1737295837092,-633.36,0.00019178,2]
[349559317,1737295837102,-727.12,0.00019178,2]
[349559318,1737295837112,-1083.84,0.00019178,2]
[349559319,1737295837121,-500.0,0.00019178,2]
[349559320,1737295837130,-697.52,0.00019178,2]
[349559321,1737295837140,-500.0,0.00019178,2]
[349559322,1737295837151,-500.0,0.00019178,2]
[349559323,1737295837161,-1671.75,0.00019178,2]
[349559324,1737295837170,-872.62,0.00019178,2]
[349559325,1737295837180,-228.01130974,0.00019178,2]
[349559326,1737295837189,-500.0,0.00019178,2]
[349559327,1737295837199,-1470.37,0.00019178,2]
[349559328,1737295837208,-500.0,0.00019178,2]
[349559329,1737295837218,-538.06,0.00019178,2]
[349559330,1737295837227,-2113.17,0.00019178,2]
[349559331,1737295837237,-669.95,0.00019178,2]
[349559332,1737295837247,-500.0,0.00019178,2]
[349559333,1737295837258,-608.59,0.00019178,2]
[349559334,1737295837267,-6374.84,0.00019178,2]
[349559336,1737295837278,-595.58,0.00019178,2]
[349559338,1737295837287,-699.23,0.00019178,2]
[349559339,1737295837296,-200.0,0.00019178,2]
[349559340,1737295837306,-500.0,0.00019178,2]
[349559341,1737295837316,-675.11,0.00019178,2]
[349559342,1737295837326,-500.0,0.00019178,2]
[349559345,1737295837335,-500.0,0.00019178,2]
[349559346,1737295837346,-946.85,0.00019178,2]
[349559347,1737295837356,-500.0,0.00019178,2]
[349559348,1737295837365,-500.0,0.00019178,2]
[349559349,1737295837376,-535.65,0.00019178,2]
[349559350,1737295837385,-500.0,0.00019178,2]
[349559351,1737295837395,-500.0,0.00019178,2]
[349559352,1737295837405,-500.0,0.00019178,2]
[349559354,1737295837415,-798.35,0.00019178,2]
[349559356,1737295837425,-1273.57,0.00019178,2]
[349559357,1737295837435,-500.0,0.00019178,2]
[349559358,1737295837446,-500.0,0.00019178,2]
[349559359,1737295837456,-500.0,0.00019178,2]
[349559360,1737295837467,-500.0,0.00019178,2]
[349559361,1737295837478,-210.91710975,0.00019178,2]
[349559362,1737295837487,-105480.54607852,0.00019178,2]
[349559363,1737295837498,-200.0,0.00019322,2]
[349559364,1737295837508,-7600.3505854,0.00019336,2]
[349559365,1737295837519,-200.0,0.00019353,2]
[349559366,1737295837528,-5023.02784193,0.00019357,2]
[349559367,1737295837538,-574.32411524,0.00019363,2]
[349559368,1737295837548,-200.0,0.0001937,2]
[349559369,1737295837558,-5023.02784193,0.00019375,2]
[349559370,1737295837619,-1331.06428071,0.00019375,2]
[349559371,1737295837628,-5023.02784193,0.00019383,2]
[349559372,1737295837639,-918.31484712,0.00019385,2]
[349559373,1737295837649,-257.50674512,0.0001939,2]
[349559374,1737295837659,-5023.02784193,0.00019398,2]
[349559375,1737295837670,-1032.75319496,0.00019399,2]
[349559376,1737295837680,-36921.0,0.000194,2]
[349559377,1737295837690,-1032.75319496,0.00019402,2]
[349559378,1737295837700,-918.31484712,0.00019405,2]
[349559379,1737295837710,-1331.06428071,0.00019407,2]
[349559380,1737295837720,-918.31484712,0.00019408,2]
[349559381,1737295837730,-1331.06428071,0.00019409,2]
[349559382,1737295837740,-200.0,0.00019413,2]
[349559383,1737295837750,-918.31484712,0.00019416,2]
[349559384,1737295837762,-918.31484712,0.00019417,2]
[349559385,1737295837772,-574.32411524,0.0001942,2]
[349559386,1737295837781,-1331.06428071,0.00019425,2]
[349559387,1737295837791,-1032.75319496,0.00019439,2]
[349559388,1737295837801,-151.57933325,0.0001945,2]
[349559389,1737295837815,-495843.59254296,0.0001945,2]
[349559390,1737295837837,-19455.59739056,0.0001945,2]
[349559391,1737295837877,-573.4205632,0.0001945,2]
[349559392,1737295837901,-3225.00002,0.0001945,2]
[349559393,1737295838012,-15723.0,0.0001945,2]
[349559394,1737295838032,-153713.98047019,0.0001945,2]
[349559411,1737295838673,-500.0,0.00019178,2]
[349559412,1737295838682,-500.0,0.00019178,2]
[349559413,1737295838691,-500.0,0.00019178,2]
[349559414,1737295838700,-575.0,0.00019178,2]
[349559415,1737295838709,-50469.99999998,0.0001945,2]
[349559416,1737295838721,-2990.62760092,0.0001945,2]
[349559417,1737295838754,-15000.0,0.0001945,2]
[349559418,1737295838839,-73517.20492449,0.0001945,2]
[349559419,1737295838850,-26282.55697638,0.0001945,2]
[349559420,1737295838943,-377.21328428,0.0001945,2]
[349559421,1737295838955,-399.01628793,0.0001945,2]
[349559422,1737295839160,-223597.65095254,0.0001945,2]
[349559423,1737295839177,-500.0,0.00019178,2]
[349559424,1737295839186,-187.77840222,0.0001945,2]
[349559427,1737295839708,-500.0,0.00019178,2]
[349559428,1737295839718,-7345.17776999,0.0001945,2]
[349559429,1737295839729,-3442.69332048,0.0001945,2]
[349559430,1737295839839,-29534.50589259,0.0001945,2]
[349559431,1737295839849,-738.52,0.00019451,2]
[349559432,1737295839859,-500.0,0.00019451,2]
[349559433,1737295839868,-1217.08,0.00019451,2]
[349559434,1737295839878,-3718.9,0.00019451,2]
[349559435,1737295839888,-1134.46,0.00019451,2]
[349559436,1737295839898,-500.0,0.00019451,2]
[349559437,1737295839909,-724.33,0.00019451,2]
[349559438,1737295839919,-500.0,0.00019451,2]
[349559439,1737295839928,-771.48,0.00019451,2]
[349559440,1737295839938,-500.0,0.00019451,2]
[349559441,1737295839948,-1000.0,0.00019451,2]
[349559442,1737295839958,-700.04,0.00019451,2]
[349559443,1737295839967,-759.68,0.00019451,2]
[349559444,1737295839977,-500.0,0.00019451,2]
[349559445,1737295839986,-515.32773155,0.00019452,2]
[349559446,1737295839996,-500.0,0.00019452,2]
[349559447,1737295840005,-614.77720971,0.00019452,2]
[349559448,1737295840019,-649.32463448,0.00019452,2]
[349559449,1737295840028,-500.0,0.00019452,2]
[349559450,1737295840038,-253.56228948,0.00019452,2]
[349559451,1737295840048,-500.0,0.00019452,2]